Workbook

Sheet 031
B2: AUTORIDAD PARA EL MANEJO SUSTENTABLE DE LA CUENCA Y DEL LAGO DE AMATITLÁN
B3: NOMINA CORRESPONDIENTE AL MES DE ENERO 2018
B4: NÚMERO 2-2018
B5: RENGLÓN 031 "JORNALES"
D7: SOLICITUD DE PAGO
B9: SUBPRODUCTO: DIRECCIÓN Y COORDINACIÓN 001-001-0001
B10: 11130016-219-00-33-00-000-001-000-031-0115-11-0000-0000
B13: No. | C13: PUESTO | D13: Titulo Jornal Diario | E13: Empleado | F13: Contrato | G13: Fecha de Ingreso | H13: Jornal | I13: Días | J13: Renglón 031 | K13: Renglón 033 | L13: Renglón 033 | M13: Total Devengado Mensual | N13: Deducciones | Q13: Total Deducciones | R13: Liquido | S13: Número de Cuenta
N14: 201 | O14: 211 | P14: 120
J15: Jornales | K15: Bono 66-2000 | L15: complemento específico por nivelación | N15: IGSS | O15: Retenciones Judiciales | P15: Decreto 81-70
B16: 1 | C16: Encargada de Limpieza | D16: Conserje | E16: Gladis Mirtala Ramírez Sánchez | F16: 01-2018-031-AMSA | G16: 2008-01-02 | H16: 71.4 | I16: 31 | J16: =H16*I16 -> 2213.4 | K16: 250 | L16: =18.76*27 -> 506.52 | M16: =SUM(J16:L16) -> 2969.92 | N16: =ROUND((J16+L16)*4.83%,2) -> 131.37 | O16: 0 | P16: 0 | Q16: =SUM(N16:P16) -> 131.37 | R16: =+M16-Q16 -> 2838.55 | S16: 3216012953
B17: 2 | D17: Conserje | E17: Vidal Cruz Martínez | F17: 02-2018-031-AMSA | G17: 2002-02-02 | H17: 71.4 | I17: 31 | J17: 2213.4 | K17: 250 | L17: 506.52 | M17: 2969.92 | N17: 131.37 | O17: 0 | P17: 0 | Q17: 131.37 | R17: 2838.55 | S17: 3216001970
B18: 3 | C18: Jardinero | D18: Conserje | E18: Victorina de Jesús Peralta Peralta | F18: 03-2018-031-AMSA | G18: 01/10/2014 | H18: 71.4 | I18: 31 | J18: 2213.4 | K18: 250 | L18: 506.52 | M18: 2969.92 | N18: 131.37 | O18: 0 | P18: 0 | Q18: 131.37 | R18: 2838.55 | S18: 3393002669
B19: 4 | D19: Conserje | E19: Sara Adelaida Quevedo Alcántara | F19: 04-2018-031-AMSA | G19: 03/12/2012 | H19: 71.4 | I19: 31 | J19: 2213.4 | K19: 250 | L19: 506.52 | M19: 2969.92 | N19: 131.37 | O19: 0 | P19: 0 | Q19: 131.37 | R19: 2838.55 | S19: 4322082859
B20: 5 | C20: Encargada de Limpieza | D20: Conserje | E20: Elida Etelvina Obando Hernandez | F20: 05-2018-031-AMSA | G20: 25/10/2013 | H20: 71.4 | I20: 31 | J20: 2213.4 | K20: 250 | L20: 506.52 | M20: 2969.92 | N20: 131.37 | O20: 0 | P20: 0 | Q20: 131.37 | R20: 2838.55 | S20: 4654012114
B21: 6 | C21: Encargada de Limpieza | D21: Conserje | E21: Yomara Ninett Escobar Calderón | F21: 06-2018-031-AMSA | G21: 03/10/2014 | H21: 71.4 | I21: 31 | J21: 2213.4 | K21: 250 | L21: 506.52 | M21: 2969.92 | N21: 131.37 | O21: 0 | P21: 0 | Q21: 131.37 | R21: 2838.55 | S21: 3164072096
B22: 7 | D22: Conserje | E22: Jacqueline Victoria Noj Carrera | F22: 07-2018-031-AMSA | G22: 01/01/2018 | H22: 71.4 | I22: 31 | J22: =H22*I22 -> 2213.4 | K22: 250 | L22: 506.52 | M22: =SUM(J22:L22) -> 2969.92 | N22: =ROUND((J22+L22)*4.83%,2) -> 131.37 | O22: 0 | P22: 0 | Q22: =SUM(N22:P22) -> 131.37 | R22: =+M22-Q22 -> 2838.55 | S22: 3759034879
B23: 8 | C23: Peon Vigilante | D23: Peón Vigilante V | E23: Estuardo Randolfo Gutierrez Cruz | F23: 08-2018-031-AMSA | G23: 2017-03-01 | H23: 75.64 | I23: 31 | J23: =H23*I23 -> 2344.84 | K23: 250 | L23: =14.52*25 -> 363 | M23: =SUM(J23:L23) -> 2957.84 | N23: =ROUND((J23+L23)*4.83%,2) -> 130.79 | O23: 0 | P23: 0 | Q23: =SUM(N23:P23) -> 130.79 | R23: =+M23-Q23 -> 2827.05 | S23: 3607017078
B24: 9 | C24: Peon Vigilante | D24: Peón Vigilante V | E24: Biayner Soto Arana | F24: 09-2018-031-AMSA | G24: 2017-02-20 | H24: 75.64 | I24: 31 | J24: 2344.84 | K24: 250 | L24: 363 | M24: 2957.84 | N24: 130.79 | O24: 0 | P24: 0 | Q24: 130.79 | R24: 2827.05 | S24: 3287038944
B25: 10 | C25: Peon Vigilante | D25: Peón Vigilante V | E25: Hamilton Wilfredo Hernández Hernández | F25: 11-2018-031-AMSA | G25: 2017-02-20 | H25: 75.64 | I25: 31 | J25: 2344.84 | K25: 250 | L25: 363 | M25: 2957.84 | N25: 130.79 | O25: 0 | P25: 0 | Q25: 130.79 | R25: 2827.05 | S25: 3287039080
B26: 11 | C26: Peon Vigilante | D26: Peón Vigilante V | E26: Hugo Concepcion Escobar Veliz | F26: 12-2018-031-AMSA | G26: 2017-02-20 | H26: 75.64 | I26: 31 | J26: 2344.84 | K26: 250 | L26: 363 | M26: 2957.84 | N26: 130.79 | O26: 0 | P26: 0 | Q26: 130.79 | R26: 2827.05 | S26: 3759033361
B27: 12 | C27: Peon Vigilante | D27: Peón Vigilante V | E27: Nazario Hernández Osorio | F27: 13-2018-031-AMSA | G27: 2017-02-20 | H27: 75.64 | I27: 31 | J27: 2344.84 | K27: 250 | L27: 363 | M27: 2957.84 | N27: 130.79 | O27: 0 | P27: 0 | Q27: 130.79 | R27: 2827.05 | S27: 3364085352
B28: 13 | C28: Peon Vigilante | D28: Peón Vigilante V | E28: Candido Samayoa y Samayoa | F28: 14-2018-031-AMSA | G28: 2017-02-20 | H28: 75.64 | I28: 31 | J28: 2344.84 | K28: 250 | L28: 363 | M28: 2957.84 | N28: 130.79 | O28: 0 | P28: 0 | Q28: 130.79 | R28: 2827.05 | S28: 3532020817
B29: 14 | C29: Peon Vigilante | D29: Peón Vigilante V | E29: Axel Augusto Lopez De León | F29: 15-2018-031-AMSA | G29: 2017-02-20 | H29: 75.64 | I29: 31 | J29: =H29*I29 -> 2344.84 | K29: 250 | L29: 363 | M29: 2957.84 | N29: 130.79 | O29: 0 | P29: 0 | Q29: 130.79 | R29: 2827.05 | S29: 3424051646
B30: 15 | C30: Peon Vigilante | D30: Peón Vigilante V | E30: Rolando Gonzalez Tahuico | F30: 16-2018-031-AMSA | G30: 2017-02-20 | H30: 75.64 | I30: 31 | J30: 2344.84 | K30: 250 | L30: 363 | M30: 2957.84 | N30: 130.79 | O30: 0 | P30: 0 | Q30: 130.79 | R30: 2827.05 | S30: 3661018168
B31: 16 | C31: Peon Vigilante | D31: Peón Vigilante V | E31: Jose Urias Muñoz | F31: 18-2018-031-AMSA | G31: 2017-02-20 | H31: 75.64 | I31: 31 | J31: =H31*I31 -> 2344.84 | K31: 250 | L31: 363 | M31: 2957.84 | N31: 130.79 | O31: 0 | P31: 0 | Q31: 130.79 | R31: 2827.05 | S31: 3137127054
B32: 17 | C32: Peon Vigilante | D32: Peón Vigilante V | E32: Henry Alejandro Ventura Hernandez | F32: 19-2018-031-AMSA | G32: 2017-02-20 | H32: 75.64 | I32: 31 | J32: 2344.84 | K32: 250 | L32: 363 | M32: 2957.84 | N32: 130.79 | O32: 0 | P32: 0 | Q32: 130.79 | R32: 2827.05 | S32: 3287039109
B33: 18 | C33: Peon Vigilante | D33: Peón Vigilante V | E33: Jorge Adán Arizandieta García | F33: 20-2018-031-AMSA | G33: 2017-02-20 | H33: 75.64 | I33: 31 | J33: 2344.84 | K33: 250 | L33: 363 | M33: 2957.84 | N33: 130.79 | O33: 0 | P33: 0 | Q33: 130.79 | R33: 2827.05 | S33: 3287038912
B34: 19 | C34: Peon Vigilante | D34: Peón Vigilante V | E34: Ricardo Arizandieta García | F34: 21-2018-031-AMSA | G34: 2017-02-20 | H34: 75.64 | I34: 31 | J34: 2344.84 | K34: 250 | L34: 363 | M34: 2957.84 | N34: 130.79 | O34: 0 | P34: 0 | Q34: 130.79 | R34: 2827.05 | S34: 3287038926
B35: 20 | D35: Peón Vigilante V | E35: Roberto Romero Peralta | F35: 22-2018-031-AMSA | G35: 2015-02-17 | H35: 75.64 | I35: 31 | J35: =H35*I35 -> 2344.84 | K35: 250 | L35: 363 | M35: =SUM(J35:L35) -> 2957.84 | N35: =ROUND((J35+L35)*4.83%,2) -> 130.79 | O35: 0 | P35: 0 | Q35: =SUM(N35:P35) -> 130.79 | R35: =+M35-Q35 -> 2827.05 | S35: 3164072927
B36: 21 | C36: Peon Vigilante | D36: Peón | E36: Rutilia Gomez Lopez | F36: 23-2018-031-AMSA | G36: 2017-05-16 | H36: 71.4 | I36: 31 | J36: 2213.4 | K36: 250 | L36: =18.76*25 -> 469 | M36: 2932.4 | N36: 129.56 | O36: 0 | P36: 0 | Q36: 129.56 | R36: 2802.84 | S36: 3153059040
F37: Totales | J37: =SUM(J16:J36) -> 48190.12 | K37: 5250 | L37: 8733.64 | M37: 62173.76 | N37: 2749.42 | O37: 0 | P37: 0 | Q37: 2749.42 | R37: 59424.34
B44: SUBPRODUCTO: CONTROL Y MANEJO DE LOS DESECHOS SÓLIDOS EN LA CUENCA DEL LAGO DE AMATITLÁN 001-002-0005
B45: 11130016-219-00-33-00-000-002-000-031-0115-11-0000-0000
B48: No. | C48: PUESTO | D48: Titulo Jornal Diario | E48: Empleado | F48: Contrato | G48: Fecha de Ingreso | H48: Jornal | I48: Días | J48: Renglón 031 | K48: Renglón 033 | L48: Renglón 033 | M48: Total Devengado Mensual | N48: Deducciones | Q48: Total Deducciones | R48: Liquido | S48: Número de Cuenta
N49: 201 | O49: 211 | P49: 120
J50: Jornales | K50: Bono 66-2000 | L50: complemento específico por nivelación | N50: IGSS | O50: Retenciones Judiciales | P50: Decreto 81-70
B51: 1 | C51: Peón de Campo | D51: Peón | E51: Maynor de Jesús De León Dionicio | F51: 24-2018-031-AMSA | G51: 05/01/2015 | H51: 71.4 | I51: 31 | J51: =H51*I51 -> 2213.4 | K51: 250 | L51: =18.76*25 -> 469 | M51: =SUM(J51:L51) -> 2932.4 | N51: =ROUND((J51+L51)*4.83%,2) -> 129.56 | O51: 0 | P51: 0 | Q51: =SUM(N51:P51) -> 129.56 | R51: =+M51-Q51 -> 2802.84 | S51: 3216010363
B52: 2 | D52: Peón | E52: Cecilio Antonio Vásquez Soto | F52: 25-2018-031-AMSA | G52: 2012-10-02 | H52: 71.4 | I52: 31 | J52: 2213.4 | K52: 250 | L52: 469 | M52: 2932.4 | N52: 129.56 | O52: 0 | P52: 0 | Q52: 129.56 | R52: 2802.84 | S52: 3532007563
B53: 3 | D53: Peón | E53: Rafael de Jesús Perea Peralta | F53: 26-2018-031-AMSA | G53: 01/01/2016 | H53: 71.4 | I53: 31 | J53: =H53*I53 -> 2213.4 | K53: 250 | L53: 469 | M53: =SUM(J53:L53) -> 2932.4 | N53: =ROUND((J53+L53)*4.83%,2) -> 129.56 | O53: 0 | P53: 0 | Q53: =SUM(N53:P53) -> 129.56 | R53: 2802.84 | S53: 3216008208
B54: 4 | D54: Peón | E54: José Filiberto Domingo Domingo | F54: 27-2018-031-AMSA | G54: 2006-01-02 | H54: 71.4 | I54: 31 | J54: =H54*I54 -> 2213.4 | K54: 250 | L54: 469 | M54: =SUM(J54:L54) -> 2932.4 | N54: =ROUND((J54+L54)*4.83%,2) -> 129.56 | O54: 0 | P54: 0 | Q54: =SUM(N54:P54) -> 129.56 | R54: 2802.84 | S54: 4216005864
B55: 5 | D55: Peón | E55: Domingo Sánchez Alonzo | F55: 55-2018-031-AMSA | G55: 2018-01-01 | H55: 71.4 | I55: 31 | J55: =H55*I55 -> 2213.4 | K55: 250 | L55: 469 | M55: =SUM(J55:L55) -> 2932.4 | N55: =ROUND((J55+L55)*4.83%,2) -> 129.56 | O55: 0 | P55: 0 | Q55: =SUM(N55:P55) -> 129.56 | R55: 2802.84 | S55: 3216034565
B56: 6 | D56: Peón | E56: Alber Asael Godínez Hernández | F56: 56-2018-031-AMSA | G56: 2018-01-01 | H56: 71.4 | I56: 31 | J56: 2213.4 | K56: 250 | L56: 469 | M56: 2932.4 | N56: 129.56 | O56: 0 | P56: 0 | Q56: 129.56 | R56: 2802.84 | S56: 3393002889
F57: Totales | J57: =SUM(J51:J56) -> 13280.4 | K57: 1500 | L57: 2814 | M57: 17594.4 | N57: 777.36 | O57: 0 | P57: 0 | Q57: 777.36 | R57: 16817.04
A68: SUBPRODUCTO: TRATAMIENTO DE LAS AGUAS RESIDUALES A TRÁVES DE LAS PLANTAS DE TRATAMIENTO A CARGO DE LA INSTITUCIÓN 001-002-0001
B69: 11130016-219-00-33-00-000-002-000-031-0115-11-0000-0000
B71: No. | C71: PUESTO | D71: Titulo Jornal Diario | E71: Empleado | F71: Contrato | G71: Fecha de Ingreso | H71: Jornal | I71: Días | J71: Renglón 031 | K71: Renglón 033 | L71: Renglón 033 | M71: Total Devengado Mensual | N71: Deducciones | Q71: Total Deducciones | R71: Liquido | S71: Número de Cuenta
N72: 201 | O72: 211 | P72: 120
J73: Jornales | K73: Bono 66-2000 | L73: complemento específico por nivelación | N73: IGSS | O73: Retenciones Judiciales | P73: Decreto 81-70
B74: 1 | C74: Peon Vigilante | D74: Peón Vigilante V | E74: Werlington Jeffrey Robinzon Alvarado Hernandez | F74: 10-2018-031-AMSA | G74: 2017-02-20 | H74: 75.64 | I74: 31 | J74: =H74*I74 -> 2344.84 | K74: 250 | L74: =14.52*25 -> 363 | M74: =SUM(J74:L74) -> 2957.84 | N74: =ROUND((J74+L74)*4.83%,2) -> 130.79 | O74: 0 | P74: 0 | Q74: =SUM(N74:P74) -> 130.79 | R74: =+M74-Q74 -> 2827.05 | S74: 3287038994
B75: 2 | C75: Operadores PTAR | D75: Peón | E75: Agustín López López | F75: 28-2018-031-AMSA | G75: 2007-01-02 | H75: 71.4 | I75: 31 | J75: =H75*I75 -> 2213.4 | K75: 250 | L75: =18.76*25 -> 469 | M75: =SUM(J75:L75) -> 2932.4 | N75: =ROUND((J75+L75)*4.83%,2) -> 129.56 | O75: 0 | P75: 0 | Q75: =SUM(N75:P75) -> 129.56 | R75: =+M75-Q75 -> 2802.84 | S75: 3216004367
B76: 3 | C76: Operadores PTAR | D76: Peón | E76: Nelson Orlando Quiñonez Yohol | F76: 29-2018-031-AMSA | G76: 2005-02-01 | H76: 71.4 | I76: 31 | J76: 2213.4 | K76: 250 | L76: 469 | M76: 2932.4 | N76: 129.56 | O76: 0 | P76: 0 | Q76: 129.56 | R76: 2802.84 | S76: 3216001475
B77: 4 | C77: Operadores PTAR | D77: Peón | E77: Herculano Colmenar Estrada | F77: 30-2018-031-AMSA | G77: 2003-03-01 | H77: 71.4 | I77: 31 | J77: 2213.4 | K77: 250 | L77: 469 | M77: 2932.4 | N77: 129.56 | O77: 0 | P77: 0 | Q77: 129.56 | R77: 2802.84 | S77: 3216001439
B78: 5 | C78: Operadores PTAR | D78: Peón | E78: Guillermo Apolonio Chuc Mejía | F78: 31-2018-031-AMSA | G78: 2003-05-01 | H78: 71.4 | I78: 31 | J78: 2213.4 | K78: 250 | L78: 469 | M78: 2932.4 | N78: 129.56 | O78: 0 | P78: 0 | Q78: 129.56 | R78: 2802.84 | S78: 3216001493
B79: 6 | C79: Operadores PTAR | D79: Peón | E79: Marcelino Gómez Dávila | F79: 32-2018-031-AMSA | G79: 2003-03-01 | H79: 71.4 | I79: 31 | J79: 2213.4 | K79: 250 | L79: 469 | M79: 2932.4 | N79: 129.56 | O79: 0 | P79: 0 | Q79: 129.56 | R79: 2802.84 | S79: 4216002459
B80: 7 | C80: Peón de Campo | D80: Peón | E80: Héctor William Martínez Cabrera | F80: 33-2018-031-AMSA | G80: 2007-01-02 | H80: 71.4 | I80: 31 | J80: 2213.4 | K80: 250 | L80: 469 | M80: 2932.4 | N80: 129.56 | O80: 0 | P80: 0 | Q80: 129.56 | R80: 2802.84 | S80: 3216004486
B81: 8 | D81: Peón | E81: Abel Barillas Grajeda | F81: 34-2018-031-AMSA | G81: 2003-04-01 | H81: 71.4 | I81: 31 | J81: 2213.4 | K81: 250 | L81: 469 | M81: 2932.4 | N81: 129.56 | O81: 0 | P81: 0 | Q81: 129.56 | R81: 2802.84 | S81: 3216001443
A82: 58 | B82: 9 | D82: Peón | E82: Napoleon Canahui Pop | F82: 35-2018-031-AMSA | G82: 2017-06-01 | H82: 71.4 | I82: 31 | J82: =H82*I82 -> 2213.4 | K82: 250 | L82: 469 | M82: =SUM(J82:L82) -> 2932.4 | N82: =ROUND((J82+L82)*4.83%,2) -> 129.56 | O82: 0 | P82: 0 | Q82: =SUM(N82:P82) -> 129.56 | R82: 2802.84 | S82: 3287036524
B83: 10 | D83: Peón | E83: Calixto de Jesús Rodríguez Quintero | F83: 36-2018-031-AMSA | G83: 2016-01-01 | H83: 71.4 | I83: 31 | J83: 2213.4 | K83: 250 | L83: 469 | M83: 2932.4 | N83: 129.56 | O83: 0 | P83: 0 | Q83: 129.56 | R83: =+M83-Q83 -> 2802.84 | S83: 3153050750
B84: 11 | D84: Peón | E84: Wilber Celestino Gonzalez Guerra | F84: 37-2018-031-AMSA | G84: 2018-01-01 | H84: 71.4 | I84: 31 | J84: =H84*I84 -> 2213.4 | K84: 250 | L84: 469 | M84: =SUM(J84:L84) -> 2932.4 | N84: =ROUND((J84+L84)*4.83%,2) -> 129.56 | O84: 0 | P84: 0 | Q84: =SUM(N84:P84) -> 129.56 | R84: =+M84-Q84 -> 2802.84 | S84: 3287036510
B85: 12 | D85: Peón | E85: Alexis Rodolfo Gonzáles Avila | F85: 38-2018-031-AMSA | G85: 2018-01-01 | H85: 71.4 | I85: 31 | J85: 2213.4 | K85: 250 | L85: 469 | M85: 2932.4 | N85: 129.56 | O85: 0 | P85: 0 | Q85: 129.56 | R85: 2802.84 | S85: 3493030662
B86: 13 | D86: Peón | E86: Domingo Antonio Martínez Vásquez | F86: 39-2018-031-AMSA | G86: 2018-01-01 | H86: 71.4 | I86: 31 | J86: 2213.4 | K86: 250 | L86: 469 | M86: 2932.4 | N86: 129.56 | O86: 0 | P86: 0 | Q86: 129.56 | R86: 2802.84 | S86: 3229011703
B87: 14 | D87: Peón | E87: Juan Luis Hernández Hernández | F87: 40-2018-031-AMSA | G87: 2018-01-01 | H87: 71.4 | I87: 31 | J87: 2213.4 | K87: 250 | L87: 469 | M87: 2932.4 | N87: 129.56 | O87: 0 | P87: 0 | Q87: 129.56 | R87: 2802.84 | S87: 3229010483
B88: 15 | D88: Peón | E88: Carlos Augusto Secaida Hernández | F88: 41-2018-031-AMSA | G88: 2018-01-01 | H88: 71.4 | I88: 31 | J88: 2213.4 | K88: 250 | L88: 469 | M88: 2932.4 | N88: 129.56 | O88: 0 | P88: 0 | Q88: 129.56 | R88: 2802.84 | S88: 3287027181
B89: 16 | D89: Peón | E89: Juan José Rodas Rivas | F89: 42-2018-031-AMSA | G89: 2018-01-01 | H89: 71.4 | I89: 31 | J89: 2213.4 | K89: 250 | L89: 469 | M89: 2932.4 | N89: 129.56 | O89: 1100 | P89: 0 | Q89: 1229.56 | R89: 1702.84 | S89: 3216008414
B90: 17 | D90: Peón | E90: Alfredo Leonardo Bámaca | F90: 43-2018-031-AMSA | G90: 2018-01-01 | H90: 71.4 | I90: 31 | J90: 2213.4 | K90: 250 | L90: 469 | M90: 2932.4 | N90: 129.56 | O90: 0 | P90: 0 | Q90: 129.56 | R90: 2802.84 | S90: 3661014699
B91: 18 | D91: Peón | E91: Filiberto Antonio Pinto | F91: 44-2018-031-AMSA | G91: 2018-01-01 | H91: 71.4 | I91: 31 | J91: 2213.4 | K91: 250 | L91: 469 | M91: 2932.4 | N91: 129.56 | O91: 0 | P91: 0 | Q91: 129.56 | R91: 2802.84 | S91: 3287036657
B92: 19 | D92: Peón | E92: Luis López Pérez | F92: 45-2018-031-AMSA | G92: 2018-01-01 | H92: 71.4 | I92: 31 | J92: 2213.4 | K92: 250 | L92: 469 | M92: 2932.4 | N92: 129.56 | O92: 0 | P92: 0 | Q92: 129.56 | R92: 2802.84 | S92: 3027187531
B93: 20 | D93: Peón | E93: Billy Joel Fernández Guevara | F93: 46-2018-031-AMSA | G93: 2018-01-01 | H93: 71.4 | I93: 31 | J93: 2213.4 | K93: 250 | L93: 469 | M93: 2932.4 | N93: 129.56 | O93: 0 | P93: 0 | Q93: 129.56 | R93: 2802.84 | S93: 3137114532
B94: 21 | D94: Peón | E94: Héctor Vásquez Gómez | F94: 47-2018-031-AMSA | G94: 2018-01-01 | H94: 71.4 | I94: 31 | J94: 2213.4 | K94: 250 | L94: 469 | M94: 2932.4 | N94: 129.56 | O94: 0 | P94: 0 | Q94: 129.56 | R94: 2802.84 | S94: 3493048208
B95: 22 | D95: Peón | E95: Fidencio Monge Pérez | F95: 48-2018-031-AMSA | G95: 2018-01-01 | H95: 71.4 | I95: 31 | J95: 2213.4 | K95: 250 | L95: 469 | M95: 2932.4 | N95: 129.56 | O95: 0 | P95: 0 | Q95: 129.56 | R95: 2802.84 | S95: 3216036260
B96: 23 | D96: Peón | E96: Basilio Ordoñez Lares | F96: 49-2018-031-AMSA | G96: 2018-01-01 | H96: 71.4 | I96: 31 | J96: 2213.4 | K96: 250 | L96: 469 | M96: 2932.4 | N96: 129.56 | O96: 0 | P96: 0 | Q96: 129.56 | R96: 2802.84 | S96: 3759029670
B97: 24 | D97: Peón | E97: Québrin Humberto Romero Chinchilla | F97: 50-2018-031-AMSA | G97: 2018-01-01 | H97: 71.4 | I97: 31 | J97: 2213.4 | K97: 250 | L97: 469 | M97: 2932.4 | N97: 129.56 | O97: 0 | P97: 0 | Q97: 129.56 | R97: 2802.84 | S97: 3628011282
B98: 25 | D98: Peón | E98: Inocente Byron Pineda Dionicio | F98: 52-2018-031-AMSA | G98: 2018-01-01 | H98: 71.4 | I98: 31 | J98: 2213.4 | K98: 250 | L98: 469 | M98: 2932.4 | N98: 129.56 | O98: 0 | P98: 0 | Q98: 129.56 | R98: 2802.84 | S98: 3216003437
B99: 26 | D99: Peón | E99: Flavio Alí Alonso Gil | F99: 53-2018-031-AMSA | G99: 2002-01-02 | H99: 71.4 | I99: 31 | J99: 2213.4 | K99: 250 | L99: 469 | M99: 2932.4 | N99: 129.56 | O99: 670 | P99: 0 | Q99: 799.56 | R99: 2132.84 | S99: 3216001631
B100: 27 | D100: Peón | E100: Carlos Fernando Tello Valdez | F100: 54-2018-031-AMSA | G100: 2002-01-02 | H100: 71.4 | I100: 31 | J100: 2213.4 | K100: 250 | L100: 469 | M100: 2932.4 | N100: 129.56 | O100: 0 | P100: 0 | Q100: 129.56 | R100: 2802.84 | S100: 4216002514
F101: Totales | J101: =SUM(J74:J100) -> 59893.24 | K101: 6750 | L101: 12557 | M101: 79200.24 | N101: 3499.35 | O101: 1770 | P101: 0 | Q101: 5269.35 | R101: 73930.89
B104: SUBPRODUCTO: VOLUMEN DE DESECHOS SÓLIDOS FLOTANTES Y PLANTAS ACUÁTICAS EXTRAÍDOS DEL LAGO DE AMATITLÁN 001-002-0002
B105: 11130016-219-00-33-00-000-002-000-031-0115-11-0000-0000
B107: No. | C107: PUESTO | D107: Titulo Jornal Diario | E107: Empleado | F107: Contrato | G107: Fecha de Ingreso | H107: Jornal | I107: Días | J107: Renglón 031 | K107: Renglón 033 | L107: Renglón 033 | M107: Total Devengado Mensual | N107: Deducciones | Q107: Total Deducciones | R107: Liquido | S107: Número de Cuenta
N108: 201 | O108: 211 | P108: 120
J109: Jornales | K109: Bono 66-2000 | L109: complemento específico por nivelación | N109: IGSS | O109: Retenciones Judiciales | P109: Decreto 81-70
B110: 1 | D110: Peón | E110: Roberto Leonel González Miguel | F110: 51-2018-031-AMSA | G110: 2018-01-01 | H110: 71.4 | I110: 31 | J110: =H110*I110 -> 2213.4 | K110: 250 | L110: =18.76*25 -> 469 | M110: =SUM(J110:L110) -> 2932.4 | N110: =ROUND((J110+L110)*4.83%,2) -> 129.56 | O110: 0 | P110: 0 | Q110: =SUM(N110:P110) -> 129.56 | R110: =+M110-Q110 -> 2802.84 | S110: 3216033718
B111: 2 | C111: Operario de Maquinaria | D111: Peón | E111: Gerver Oswaldo Suruy Estupe | F111: 57-2018-031-AMSA | G111: 2007-01-02 | H111: 71.4 | I111: 31 | J111: =H111*I111 -> 2213.4 | K111: 250 | L111: 469 | M111: =SUM(J111:L111) -> 2932.4 | N111: =ROUND((J111+L111)*4.83%,2) -> 129.56 | O111: 0 | P111: 0 | Q111: =SUM(N111:P111) -> 129.56 | R111: =+M111-Q111 -> 2802.84 | S111: 3216003318
B112: 3 | C112: Lanchero | D112: Peón | E112: Andrés Payes Rodríguez | F112: 58-2018-031-AMSA | G112: 2002-01-02 | H112: 71.4 | I112: 31 | J112: =H112*I112 -> 2213.4 | K112: 250 | L112: 469 | M112: =SUM(J112:L112) -> 2932.4 | N112: =ROUND((J112+L112)*4.83%,2) -> 129.56 | O112: 800 | P112: 0 | Q112: =SUM(N112:P112) -> 929.56 | R112: =+M112-Q112 -> 2002.84 | S112: 3216001700
B113: 4 | C113: Peón de Campo | D113: Peón | E113: Ignacio Seijas Sequen | F113: 59-2018-031-AMSA | G113: 2006-01-02 | H113: 71.4 | I113: 31 | J113: 2213.4 | K113: 250 | L113: 469 | M113: 2932.4 | N113: 129.56 | O113: 0 | P113: 0 | Q113: 129.56 | R113: 2802.84 | S113: 3234009071
B114: 5 | C114: Peón de Campo | D114: Peón | E114: Mario Arturo Sigüenza | F114: 60-2018-031-AMSA | G114: 2003-08-01 | H114: 71.4 | I114: 31 | J114: 2213.4 | K114: 250 | L114: 469 | M114: 2932.4 | N114: 129.56 | O114: 0 | P114: 0 | Q114: 129.56 | R114: 2802.84 | S114: 3216001801
B115: 6 | C115: Encargado de Oxigenadores | D115: Peón | E115: Jesús Antonio Montúfar Mazariegos | F115: 61-2018-031-AMSA | G115: 2007-05-02 | H115: 71.4 | I115: 31 | J115: 2213.4 | K115: 250 | L115: 469 | M115: 2932.4 | N115: 129.56 | O115: 0 | P115: 0 | Q115: 129.56 | R115: 2802.84 | S115: 3164031580
B116: 7 | C116: Peón de Campo | D116: Peón | E116: Carlos Humberto Gatica González | F116: 62-2018-031-AMSA | G116: 2007-05-16 | H116: 71.4 | I116: 31 | J116: 2213.4 | K116: 250 | L116: 469 | M116: 2932.4 | N116: 129.56 | O116: 0 | P116: 0 | Q116: 129.56 | R116: 2802.84 | S116: 4216002528
B117: 8 | C117: Peón de Campo | D117: Peón | E117: Nery Armando Castañeda Avilés | F117: 63-2018-031-AMSA | G117: 2008-06-09 | H117: 71.4 | I117: 31 | J117: 2213.4 | K117: 250 | L117: 469 | M117: 2932.4 | N117: 129.56 | O117: 0 | P117: 0 | Q117: 129.56 | R117: 2802.84 | S117: 3164034252
B118: 9 | C118: Peón de Campo | D118: Peón | E118: Yury Geovani Guzmán Avilés | F118: 64-2018-031-AMSA | G118: 2010-01-02 | H118: 71.4 | I118: 31 | J118: 2213.4 | K118: 250 | L118: 469 | M118: 2932.4 | N118: 129.56 | O118: 0 | P118: 0 | Q118: 129.56 | R118: 2802.84 | S118: 3216001645
B119: 10 | D119: Peón | E119: Cosmen Vitalino Obando Montenegro | F119: 65-2018-031-AMSA | G119: 2007-01-02 | H119: 71.4 | I119: 31 | J119: 2213.4 | K119: 250 | L119: 469 | M119: 2932.4 | N119: 129.56 | O119: 0 | P119: 0 | Q119: 129.56 | R119: 2802.84 | S119: 3216004490
B120: 11 | D120: Peón | E120: Juan Antonio Roque Dionisio | F120: 66-2018-031-AMSA | G120: 2007-01-02 | H120: 71.4 | I120: 31 | J120: 2213.4 | K120: 250 | L120: 469 | M120: 2932.4 | N120: 129.56 | O120: 0 | P120: 0 | Q120: 129.56 | R120: 2802.84 | S120: 3216004353
B121: 12 | D121: Peón | E121: Marlon Geovani Arizandieta Arroyo | F121: 67-2018-031-AMSA | G121: 2013-02-01 | H121: 71.4 | I121: 31 | J121: 2213.4 | K121: 250 | L121: 469 | M121: 2932.4 | N121: 129.56 | O121: 0 | P121: 0 | Q121: 129.56 | R121: 2802.84 | S121: 3216001627
B122: 13 | D122: Peón | E122: Erik Leonel Quixaj Ortiz | F122: 68-2018-031-AMSA | G122: 2017-01-01 | H122: 71.4 | I122: 31 | J122: 2213.4 | K122: 250 | L122: 469 | M122: 2932.4 | N122: 129.56 | O122: 0 | P122: 0 | Q122: 129.56 | R122: 2802.84 | S122: 3164003073
B123: 14 | D123: Conserje | E123: Reyna Elizabeth Toc Choz | F123: 69-2018-031-AMSA | G123: 2014-07-14 | H123: 71.4 | I123: 31 | J123: =H123*I123 -> 2213.4 | K123: 250 | L123: =18.76*27 -> 506.52 | M123: =SUM(J123:L123) -> 2969.92 | N123: =ROUND((J123+L123)*4.83%,2) -> 131.37 | O123: 0 | P123: 0 | Q123: =SUM(N123:P123) -> 131.37 | R123: 2838.55 | S123: 3247011971
B124: 15 | D124: Peón | E124: José Luis Arizandieta Cabrera | F124: 70-2018-031-AMSA | G124: 2016-01-01 | H124: 71.4 | I124: 31 | J124: =H124*I124 -> 2213.4 | K124: 250 | L124: =18.76*25 -> 469 | M124: =SUM(J124:L124) -> 2932.4 | N124: =ROUND((J124+L124)*4.83%,2) -> 129.56 | O124: 0 | P124: 0 | Q124: =SUM(N124:P124) -> 129.56 | R124: =+M124-Q124 -> 2802.84 | S124: 3229010497
B125: 16 | D125: Peón | E125: Jorge Eduardo López Ramírez | F125: 71-2018-031-AMSA | G125: 2018-01-01 | H125: 71.4 | I125: 31 | J125: =H125*I125 -> 2213.4 | K125: 250 | L125: 469 | M125: =SUM(J125:L125) -> 2932.4 | N125: =ROUND((J125+L125)*4.83%,2) -> 129.56 | O125: 0 | P125: 0 | Q125: =SUM(N125:P125) -> 129.56 | R125: =+M125-Q125 -> 2802.84 | S125: 3815003829
B126: 17 | D126: Peón | E126: Samuel Acabal Ajbac | F126: 72-2018-031-AMSA | G126: 2018-01-01 | H126: 71.4 | I126: 31 | J126: 2213.4 | K126: 250 | L126: 469 | M126: 2932.4 | N126: 129.56 | O126: 0 | P126: 0 | Q126: 129.56 | R126: 2802.84 | S126: 3225014368
B127: 18 | D127: Peón | E127: Esvin Daniel Ramirez Pineda | F127: 73-2018-031-AMSA | G127: 2018-01-01 | H127: 71.4 | I127: 31 | J127: 2213.4 | K127: 250 | L127: 469 | M127: 2932.4 | N127: 129.56 | O127: 0 | P127: 0 | Q127: 129.56 | R127: 2802.84 | S127: 3164073417
B128: 19 | D128: Peón | E128: Jefry Antonio Paiz Díaz | F128: 74-2018-031-AMSA | G128: 2018-01-01 | H128: 71.4 | I128: 31 | J128: 2213.4 | K128: 250 | L128: 469 | M128: 2932.4 | N128: 129.56 | O128: 0 | P128: 0 | Q128: 129.56 | R128: 2802.84 | S128: 3164073908
B129: 20 | D129: Peón | E129: Edie Stuardo García Velásquez | F129: 75-2018-031-AMSA | G129: 2018-01-01 | H129: 71.4 | I129: 31 | J129: 2213.4 | K129: 250 | L129: 469 | M129: 2932.4 | N129: 129.56 | O129: 0 | P129: 0 | Q129: 129.56 | R129: 2802.84 | S129: 3287036831
B130: 21 | D130: Peón | E130: Bernardino Alistún Cachín | F130: 76-2018-031-AMSA | G130: 2018-01-01 | H130: 71.4 | I130: 31 | J130: 2213.4 | K130: 250 | L130: 469 | M130: 2932.4 | N130: 129.56 | O130: 0 | P130: 0 | Q130: 129.56 | R130: 2802.84 | S130: 3287036813
B131: 22 | D131: Peón | E131: Epimenio Nehemias Arroyo Telon | F131: 78-2018-031-AMSA | G131: 2018-01-01 | H131: 71.4 | I131: 31 | J131: 2213.4 | K131: 250 | L131: 469 | M131: 2932.4 | N131: 129.56 | O131: 0 | P131: 0 | Q131: 129.56 | R131: 2802.84 | S131: 3229056994
F132: Totales | J132: =SUM(J110:J131) -> 48694.8 | K132: 5500 | L132: 10355.52 | M132: 64550.32 | N132: 2852.13 | O132: 800 | P132: 0 | Q132: 3652.13 | R132: 60898.19
B135: SUBPRODUCTO: REFORESTACIÓN Y MANTENIMIENTO DE ÁREAS EN LA CUENCA DEL LAGO DE AMATITLÁN 001-008-0008
B136: 11130016-219-00-33-00-000-005-000-031-0115-11-0000-0000
B138: No. | C138: PUESTO | D138: Titulo Jornal Diario | E138: Empleado | F138: Contrato | G138: Fecha de Ingreso | H138: Jornal | I138: Días | J138: Renglón 031 | K138: Renglón 033 | L138: Renglón 033 | M138: Total Devengado Mensual | N138: Deducciones | Q138: Total Deducciones | R138: Liquido | S138: Número de Cuenta
N139: 201 | O139: 211 | P139: 120
J140: Jornales | K140: Bono 66-2000 | L140: complemento específico por nivelación | N140: IGSS | O140: Retenciones Judiciales | P140: Decreto 81-70
B141: 1 | D141: Jardinero II | E141: José Abel Chamalé Par | F141: 77-2018-031-AMSA | G141: 2018-01-01 | H141: 72.54 | I141: 31 | J141: =H141*I141 -> 2248.74 | K141: 250 | L141: =18.76*25 -> 469 | M141: =SUM(J141:L141) -> 2967.74 | N141: =ROUND((J141+L141)*4.83%,2) -> 131.27 | O141: 0 | Q141: =SUM(N141:P141) -> 131.27 | R141: =+M141-Q141 -> 2836.47 | S141: 3164078632
B142: 2 | D142: Jardinero II | E142: Esvin Leonel Rivera Pineda | F142: 79-2018-031-AMSA | G142: 2014-02-17 | H142: 72.54 | I142: 31 | J142: =H142*I142 -> 2248.74 | K142: 250 | L142: 469 | M142: =SUM(J142:L142) -> 2967.74 | N142: =ROUND((J142+L142)*4.83%,2) -> 131.27 | O142: 0 | Q142: =SUM(N142:P142) -> 131.27 | R142: =+M142-Q142 -> 2836.47 | S142: 3216001659
B143: 3 | C143: Peón de Campo | D143: Jardinero II | E143: José Alberto Rucal | F143: 80-2018-031-AMSA | G143: 2002-01-02 | H143: 72.54 | I143: 31 | J143: 2248.74 | K143: 250 | L143: 469 | M143: 2967.74 | N143: 131.27 | O143: 0 | Q143: 131.27 | R143: 2836.47 | S143: 3216001457
B144: 4 | C144: Peón de Campo | D144: Jardinero II | E144: Julio Roberto Martínez Aguilar | F144: 81-2018-031-AMSA | G144: 2002-01-02 | H144: 72.54 | I144: 31 | J144: 2248.74 | K144: 250 | L144: 469 | M144: 2967.74 | N144: 131.27 | O144: 0 | Q144: 131.27 | R144: 2836.47 | S144: 3216001695
B145: 5 | C145: Peón de Campo | D145: Jardinero II | E145: Juan Emilio Cruz De León | F145: 82-2018-031-AMSA | G145: 2015-01-05 | H145: 72.54 | I145: 31 | J145: 2248.74 | K145: 250 | L145: 469 | M145: 2967.74 | N145: 131.27 | O145: 0 | Q145: 131.27 | R145: 2836.47 | S145: 3216001920
B146: 6 | C146: Peón de Campo | D146: Jardinero II | E146: Emilio Taque Carranza | F146: 83-2018-031-AMSA | G146: 2013-01-02 | H146: 72.54 | I146: 31 | J146: 2248.74 | K146: 250 | L146: 469 | M146: 2967.74 | N146: 131.27 | O146: 0 | Q146: 131.27 | R146: 2836.47 | S146: 3216004468
B147: 7 | C147: Peón de Campo | D147: Jardinero II | E147: Rigoberto de Jesús Osorio Morataya | F147: 84-2018-031-AMSA | G147: 2007-09-01 | H147: 72.54 | I147: 31 | J147: 2248.74 | K147: 250 | L147: 469 | M147: 2967.74 | N147: 131.27 | O147: 0 | Q147: 131.27 | R147: 2836.47 | S147: 3164033390
B148: 8 | C148: Peón de Campo | D148: Jardinero II | E148: Manuel de Jesús Coy Malín | F148: 85-2018-031-AMSA | G148: 2002-01-02 | H148: 72.54 | I148: 31 | J148: 2248.74 | K148: 250 | L148: 469 | M148: 2967.74 | N148: 131.27 | O148: 0 | Q148: 131.27 | R148: 2836.47 | S148: 3216001728
B149: 9 | C149: Peón de Campo | D149: Jardinero II | E149: Francisco Javier Rivera Orellana | F149: 86-2018-031-AMSA | G149: 2004-07-07 | H149: 72.54 | I149: 31 | J149: 2248.74 | K149: 250 | L149: 469 | M149: 2967.74 | N149: 131.27 | O149: 0 | Q149: 131.27 | R149: 2836.47 | S149: 3216001916
B150: 10 | C150: Peón de Campo | D150: Jardinero II | E150: Fermín Hernández Martinez | F150: 87-2018-031-AMSA | G150: 2002-02-01 | H150: 72.54 | I150: 31 | J150: 2248.74 | K150: 250 | L150: 469 | M150: 2967.74 | N150: 131.27 | O150: 0 | Q150: 131.27 | R150: 2836.47 | S150: 4216002596
B151: 11 | C151: Peón de Campo | D151: Jardinero II | E151: Víctor Manuel López Rodríguez | F151: 88-2018-031-AMSA | G151: 2005-02-01 | H151: 72.54 | I151: 31 | J151: 2248.74 | K151: 250 | L151: 469 | M151: 2967.74 | N151: 131.27 | O151: 0 | Q151: 131.27 | R151: 2836.47 | S151: 3216001865
B152: 12 | C152: Piloto | D152: Jardinero II | E152: Cosme Virgilio Morales Rodríguez | F152: 89-2018-031-AMSA | G152: 2005-01-03 | H152: 72.54 | I152: 31 | J152: 2248.74 | K152: 250 | L152: 469 | M152: 2967.74 | N152: 131.27 | O152: 0 | Q152: 131.27 | R152: 2836.47 | S152: 3216001829
B153: 13 | C153: Peón de Campo | D153: Jardinero II | E153: Carlos Alberto Morales Contreras | F153: 90-2018-031-AMSA | G153: 2005-01-03 | H153: 72.54 | I153: 31 | J153: 2248.74 | K153: 250 | L153: 469 | M153: 2967.74 | N153: 131.27 | O153: 0 | Q153: 131.27 | R153: 2836.47 | S153: 3216001833
B154: 14 | C154: Peón de Campo | D154: Jardinero II | E154: Miguel Ángel Ramos Luis | F154: 91-2018-031-AMSA | G154: 2002-02-12 | H154: 72.54 | I154: 31 | J154: 2248.74 | K154: 250 | L154: 469 | M154: 2967.74 | N154: 131.27 | O154: 0 | Q154: 131.27 | R154: 2836.47 | S154: 3216001851
B155: 15 | C155: Peón de Campo | D155: Jardinero II | E155: Felipe Santiago Carreto | F155: 92-2018-031-AMSA | G155: 2006-01-03 | H155: 72.54 | I155: 31 | J155: 2248.74 | K155: 250 | L155: 469 | M155: 2967.74 | N155: 131.27 | O155: 0 | Q155: 131.27 | R155: 2836.47 | S155: 4216008623
B156: 16 | D156: Jardinero II | E156: Custodio Quiñonez Morataya | F156: 93-2018-031-AMSA | G156: 2015-11-03 | H156: 72.54 | I156: 31 | J156: 2248.74 | K156: 250 | L156: 469 | M156: 2967.74 | N156: 131.27 | O156: 0 | Q156: 131.27 | R156: 2836.47 | S156: 3164030412
B157: 17 | D157: Jardinero II | E157: Sotero Chocón Vargas | F157: 94-2018-031-AMSA | G157: 2018-01-01 | H157: 72.54 | I157: 31 | J157: 2248.74 | K157: 250 | L157: 469 | M157: 2967.74 | N157: 131.27 | O157: 0 | Q157: 131.27 | R157: 2836.47 | S157: 3164079920
B158: 18 | D158: Jardinero II | E158: José Muñoz Chávez | F158: 95-2018-031-AMSA | G158: 2016-01-01 | H158: 72.54 | I158: 31 | J158: 2248.74 | K158: 250 | L158: 469 | M158: 2967.74 | N158: 131.27 | O158: 0 | Q158: 131.27 | R158: 2836.47 | S158: 3229011973
B159: 19 | D159: Jardinero II | E159: Víctor Vicente Paredes González | F159: 96-2018-031-AMSA | G159: 2016-01-01 | H159: 72.54 | I159: 31 | J159: 2248.74 | K159: 250 | L159: 469 | M159: 2967.74 | N159: 131.27 | O159: 0 | Q159: 131.27 | R159: 2836.47 | S159: 3287008934
B160: 20 | D160: Jardinero II | E160: Antonio Coy Hernandez | F160: 97-2018-031-AMSA | G160: 2016-01-01 | H160: 72.54 | I160: 31 | J160: 2248.74 | K160: 250 | L160: 469 | M160: 2967.74 | N160: 131.27 | O160: 0 | Q160: 131.27 | R160: 2836.47 | S160: 3287036198
B161: 21 | D161: Jardinero II | E161: Vitelio Catalan Ovando | F161: 98-2018-031-AMSA | G161: 2016-01-01 | H161: 72.54 | I161: 31 | J161: 2248.74 | K161: 250 | L161: 469 | M161: 2967.74 | N161: 131.27 | O161: 0 | Q161: 131.27 | R161: 2836.47 | S161: 3164074549
B162: 22 | D162: Jardinero II | E162: Ovidio Lizandro Alburez Martínez | F162: 99-2018-031-AMSA | G162: 2018-01-01 | H162: 72.54 | I162: 31 | J162: 2248.74 | K162: 250 | L162: =18.76*25 -> 469 | M162: 2967.74 | N162: 131.27 | O162: 0 | Q162: 131.27 | R162: 2836.47 | S162: 3164029306
B163: 23 | D163: Jardinero II | E163: Rafael Rodríguez López | F163: 100-2018-031-AMSA | G163: 2018-01-01 | H163: 72.54 | I163: 31 | J163: 2248.74 | K163: 250 | L163: 469 | M163: 2967.74 | N163: 131.27 | O163: 0 | Q163: 131.27 | R163: 2836.47 | S163: 3164041601
B164: 24 | D164: Jardinero II | E164: Sixto Emmanuel Hernández Hernández | F164: 101-2018-031-AMSA | G164: 2018-01-01 | H164: 72.54 | I164: 31 | J164: 2248.74 | K164: 250 | L164: 469 | M164: 2967.74 | N164: 131.27 | O164: 0 | Q164: 131.27 | R164: 2836.47 | S164: 3164072945
B165: 25 | D165: Jardinero II | E165: Vilmer Antonio Jimenez Choma | F165: 102-2018-031-AMSA | G165: 2018-01-01 | H165: 72.54 | I165: 31 | J165: 2248.74 | K165: 250 | L165: 469 | M165: 2967.74 | N165: 131.27 | O165: 0 | Q165: 131.27 | R165: 2836.47 | S165: 3287032954
B166: 26 | D166: Jardinero II | E166: Gabriel de Jesús Morales Pineda | F166: 103-2018-031-AMSA | G166: 2018-01-01 | H166: 72.54 | I166: 31 | J166: 2248.74 | K166: 250 | L166: 469 | M166: 2967.74 | N166: 131.27 | O166: 0 | Q166: 131.27 | R166: 2836.47 | S166: 3654013124
B167: 27 | D167: Jardinero II | E167: Adan Crispín | F167: 104-2018-031-AMSA | G167: 2018-01-01 | H167: 72.54 | I167: 31 | J167: 2248.74 | K167: 250 | L167: 469 | M167: 2967.74 | N167: 131.27 | O167: 0 | Q167: 131.27 | R167: 2836.47 | S167: 3164072894
B168: 28 | D168: Jardinero II | E168: Fredy Leonidas Domínguez Ortiz | F168: 105-2018-031-AMSA | G168: 2018-01-01 | H168: 72.54 | I168: 31 | J168: 2248.74 | K168: 250 | L168: 469 | M168: 2967.74 | N168: 131.27 | O168: 0 | Q168: 131.27 | R168: 2836.47 | S168: 3287032867
B169: 29 | D169: Jardinero II | E169: Vicente Orlando Escobar Estupe | F169: 106-2018-031-AMSA | G169: 2018-01-01 | H169: 72.54 | I169: 31 | J169: 2248.74 | K169: 250 | L169: 469 | M169: 2967.74 | N169: 131.27 | O169: 0 | Q169: 131.27 | R169: 2836.47 | S169: 3686024851
B170: 30 | D170: Jardinero II | E170: Carlos Humberto Arizandieta Cabrera | F170: 107-2018-031-AMSA | G170: 2018-01-01 | H170: 72.54 | I170: 31 | J170: 2248.74 | K170: 250 | L170: 469 | M170: 2967.74 | N170: 131.27 | O170: 0 | Q170: 131.27 | R170: 2836.47 | S170: 3229052425
B171: 31 | D171: Jardinero II | E171: Gerardo Macolás Marroquín | F171: 108-2018-031-AMSA | G171: 2018-01-01 | H171: 72.54 | I171: 31 | J171: 2248.74 | K171: 250 | L171: 469 | M171: 2967.74 | N171: 131.27 | O171: 0 | Q171: 131.27 | R171: 2836.47 | S171: 3229011717
B172: 32 | D172: Jardinero II | E172: Teodoro Quexel Lopez | F172: 109-2018-031-AMSA | G172: 2018-01-01 | H172: 72.54 | I172: 31 | J172: 2248.74 | K172: 250 | L172: 469 | M172: 2967.74 | N172: 131.27 | O172: 0 | Q172: 131.27 | R172: 2836.47 | S172: 3287038930
B173: 33 | D173: Jardinero II | E173: Julio Rodolfo Nixón García Ramírez | F173: 110-2018-031-AMSA | G173: 2018-01-01 | H173: 72.54 | I173: 31 | J173: 2248.74 | K173: 250 | L173: 469 | M173: 2967.74 | N173: 131.27 | O173: 0 | Q173: 131.27 | R173: 2836.47 | S173: 3661012641
B174: 34 | D174: Jardinero II | E174: Neri Antonio Hernández Osorio | F174: 111-2018-031-AMSA | G174: 2018-01-01 | H174: 72.54 | I174: 31 | J174: 2248.74 | K174: 250 | L174: 469 | M174: 2967.74 | N174: 131.27 | O174: 0 | Q174: 131.27 | R174: 2836.47 | S174: 3164040395
B175: 35 | D175: Jardinero II | E175: Mauro Romeo González Quezada | F175: 112-2018-031-AMSA | G175: 2018-01-01 | H175: 72.54 | I175: 31 | J175: 2248.74 | K175: 250 | L175: 469 | M175: 2967.74 | N175: 131.27 | O175: 0 | Q175: 131.27 | R175: 2836.47 | S175: 3164079984
F176: Totales | J176: =SUM(J141:J175) -> 78705.9 | K176: 8750 | L176: 16415 | M176: 103870.9 | N176: 4594.45 | O176: 0 | P176: =SUM(P141:P175) -> 0 | Q176: 4594.45 | R176: =SUM(R141:R175) -> 99276.45
J179: Renglón 031 | K179: Renglón 033 | L179: Renglón 033 | M179: Total Devengado Mensual | N179: Deducciones | Q179: Total Deducciones | R179: Liquido
N180: 201 | O180: 211 | P180: 120
B181: TOTAL NÓMINA | J181: Jornales | K181: Bono 66-2000 | L181: complemento específico por nivelación | N181: IGSS | O181: Retenciones Judiciales | P181: Decreto 81-70
J182: =+J176+J132+J101+J57+J37 -> 248764.46 | K182: 27750 | L182: 50875.16 | M182: 327389.62 | N182: 14472.71 | O182: 2570 | P182: 0 | Q182: 17042.71 | R182: 310346.91

Sheet POLICIAS
A2: AUTORIDAD PARA EL MANEJO SUSTENTABLE DE LA CUENCA Y DEL LAGO DE AMATITLÁN
A3: NOMINA CORRESPONDIENTE AL MES DE ENERO 2018
A4: NÚMERO 3-2018
B5: RENGLÓN 031 "JORNALES"
C7: SOLICITUD DE PAGO
A9: SUBPRODUCTO: DIRECCIÓN Y COORDINACIÓN 001-001-0001
B10: 11130016-219-00-33-00-000-001-000-031-0115-11-0000-0000
B14: No. | C14: Titulo Jornal Diario | D14: Empleado | E14: Contrato | F14: Fecha de Ingreso | G14: Jornal | H14: Días | I14: Renglón 031 | J14: Renglón 033 | K14: Renglón 033 | L14: Total Devengado Mensual | M14: Deducciones | P14: Total Deducciones | Q14: Liquido | R14: Número de Cuenta G&T
M15: 201 | N15: 211 | O15: 120
I16: Jornales | J16: Bono 66-2000 | K16: complemento específico por nivelación | M16: IGSS | N16: Retenciones Judiciales | O16: Decreto 81-70
B17: 1 | C17: Peon Vigilante V | D17: José Luis Perpuac Gómez | E17: 17-2018-031-AMSA | F17: 2017-02-20 | G17: 75.64 | H17: 31 | I17: =G17*H17 -> 2344.84 | J17: 250 | K17: =14.52*25 -> 363 | L17: =SUM(I17:K17) -> 2957.84 | M17: =ROUND((I17+K17)*4.83%,2) -> 130.79 | N17: 0 | O17: 0 | P17: =SUM(M17:O17) -> 130.79 | Q17: =+L17-P17 -> 2827.05 | R17: 0430010569-2
